bitfinex-derivatives/quotes_ETHF0:USTF0_20251211
["timestamp","ask_amount","ask_price","bid_price","bid_amount"]
[1765425615784,1.12921529,3187.2,3187.1,1.62425]
[1765425616090,2.58341529,3187.2,3187.1,0.15685]
[1765425616588,0.7352,3186.3,3186.2,1.62899182]
[1765425616783,1.12921529,3186.3,3186.2,1.62899182]
[1765425616983,1.86441529,3186.3,3186.2,1.62899182]
[1765425617582,2.58341529,3186.3,3186.2,1.62899182]
[1765425617782,2.58341529,3186.3,3186.2,0.16159182]
[1765425618086,1.12921529,3186.3,3186.2,1.62899182]
[1765425618393,2.58341529,3186.3,3186.2,1.62899182]
[1765425618987,1.86441529,3186.3,3186.2,1.62899182]
[1765425619185,1.86441529,3186.3,3186.0,0.4226]
[1765425619382,3.34617738,3186.2,3186.1,1.6157]
[1765425619891,1.12921529,3186.2,3186.1,1.6157]
[1765425620986,2.58341529,3186.2,3186.1,0.8783]
[1765425621191,1.86441529,3186.2,3186.1,1.6157]
[1765425621387,1.12921529,3186.2,3186.1,1.6157]
[1765425622287,0.44,3186.0,3185.8,0.00470182]
[1765425622488,3.34577883,3185.9,3185.8,0.16161182]
[1765425622888,3.34577883,3185.9,3185.8,6.16161182]
[1765425622889,1.12941293,3185.9,3185.8,6.16161182]
[1765425623390,2.8070525,3186.3,3186.2,0.15689]
[1765425623589,0.44470182,3186.5,3186.4,0.15688]
[1765425623892,0.11941182,3186.5,3186.4,0.15688]
[1765425624086,0.00470182,3186.5,3186.4,0.15688]
[1765425624481,0.44470182,3186.5,3186.4,0.15688]
[1765425624888,1.89890182,3186.5,3186.4,0.15688]
[1765425625386,0.44470182,3186.5,3186.4,0.15688]
[1765425627193,0.44470182,3186.5,3186.4,6.15688]
[1765425628096,1.17990182,3186.5,3186.4,0.15688]
[1765425628290,0.44470182,3186.5,3186.4,0.15688]
[1765425628489,3.2470525,3187.0,3185.8,6.51970182]
[1765425628694,3.2470525,3187.0,3186.9,0.15686]
[1765425629091,1.1309,3187.0,3186.9,0.15686]
[1765425629288,1.1309,3187.0,3186.0,1.66245586]
[1765425629489,4.17089825,3186.8,3186.7,0.15687]
[1765425629694,1.38500182,3186.8,3186.7,0.15687]
[1765425629890,2.79073216,3186.8,3186.7,0.15687]
[1765425630491,0.00470182,3186.8,3186.7,0.15687]
[1765425632097,1.38500182,3186.8,3186.7,0.15687]
[1765425632294,4.17103216,3186.8,3186.0,40.8]
[1765425632500,0.4294,3186.0,3185.9,0.15691]
[1765425632993,0.08961,3186.0,3185.9,0.15691]
[1765425633192,2.23877152,3186.1,3185.8,0.00470182]
[1765425633393,0.4294,3186.5,3186.4,0.15688]
[1765425633598,1.8097,3186.5,3186.4,0.15688]
[1765425633797,1.1203,3186.5,3186.4,0.15688]
[1765425634098,0.4294,3186.5,3186.4,0.15688]
[1765425634291,0.4294,3186.5,3185.8,0.00470182]
[1765425634595,2.79073216,3186.8,3186.7,0.15687]
[1765425634791,2.43873216,3186.9,3186.7,0.15687]
[1765425634993,0.44,3187.0,3186.0,1.66245586]
[1765425635198,0.44,3187.0,3186.9,0.15686]
[1765425635393,2.23993232,3187.0,3186.9,0.15686]
[1765425635896,2.92933232,3187.0,3186.9,0.15686]
[1765425636495,2.23993232,3187.0,3186.9,0.15686]
[1765425636696,1.54903232,3187.0,3186.9,0.15686]
[1765425637501,2.92933232,3187.0,3186.9,0.15686]
[1765425638999,2.23993232,3187.0,3186.9,0.15686]
[1765425639200,1.54903232,3187.0,3186.9,0.15686]
[1765425639902,2.92933232,3187.0,3186.9,0.15686]
[1765425640103,1.54903232,3187.0,3186.9,0.15686]
[1765425643503,2.92933232,3187.0,3186.9,0.15686]
[1765425643908,1.54903232,3187.0,3186.9,0.15686]
[1765425644102,2.23993232,3187.0,3186.9,0.15686]
[1765425644298,1.1309,3187.0,3186.9,0.15686]
[1765425644503,0.44,3187.0,3186.9,0.15686]
[1765425644707,1.1309,3187.0,3186.9,0.15686]
[1765425644909,1.8203,3187.0,3186.9,0.15686]
[1765425645612,1.8203,3187.0,3185.8,0.00470182]
[1765425646509,1.8203,3187.0,3186.9,0.15686]
[1765425648010,1.8203,3187.0,3185.8,1.42870182]
[1765425648202,1.8203,3187.0,3185.8,0.00470182]
[1765425648409,0.4294,3186.0,3185.9,0.88111]
[1765425648709,1.8097,3186.0,3185.9,0.15691]
[1765425648913,1.8097,3186.0,3185.9,0.51901]
[1765425649208,1.1203,3186.0,3185.9,0.88111]
[1765425649407,0.4294,3186.0,3185.9,0.88111]
[1765425649809,0.11056,3186.0,3185.9,0.88111]
[1765425650307,1.8097,3186.5,3186.4,0.15688]
[1765425650512,1.8097,3186.5,3186.4,0.83768]
[1765425650713,1.8097,3186.5,3186.4,0.15688]
[1765425650906,1.8097,3186.5,3186.4,0.83768]
[1765425651214,1.8097,3186.5,3186.4,0.15688]
[1765425652304,1.1203,3186.5,3186.4,1.51868]
[1765425652707,1.8097,3186.5,3186.4,1.51868]
[1765425653109,1.8203,3187.0,3186.9,0.15686]
[1765425653311,1.8203,3187.0,3186.9,0.83766]
[1765425653712,0.44,3187.0,3186.9,1.51866]
[1765425653909,1.8203,3187.0,3186.9,0.15686]
[1765425654112,1.8203,3187.0,3186.9,1.51866]
[1765425654113,1.1309,3187.0,3186.9,1.51866]
[1765425654715,1.8203,3187.0,3186.9,0.15686]
[1765425655713,1.1309,3187.0,3186.9,1.51866]
[1765425655910,0.44,3187.0,3186.9,1.51866]
[1765425656114,1.8203,3187.0,3186.9,0.15686]
[1765425658218,1.8203,3187.0,3186.9,0.83766]
[1765425658423,1.1309,3187.0,3186.9,1.51886]
[1765425658820,1.139,3187.0,3186.9,1.51886]
[1765425659020,1.889,3187.0,3186.9,0.83806]
[1765425659223,1.139,3187.0,3186.9,1.51926]
[1765425659514,0.44,3187.0,3186.9,1.51926]
[1765425660416,1.889,3187.0,3186.9,0.15686]
[1765425661416,0.44,3187.0,3186.9,1.51926]
[1765425662620,1.139,3187.0,3186.9,1.51926]
[1765425662917,0.44,3187.0,3186.9,1.51926]
[1765425663418,0.70743364,3187.3,3187.2,1.61364]
[1765425664315,3.64e-06,3187.3,3187.2,1.61364]
[1765425665319,0.00282077,3187.3,3187.2,1.61642228]
[1765425666115,1.8784,3188.0,3187.9,0.88811]
[1765425666520,1.8784,3188.5,3188.4,0.15679]
[1765425667116,1.88116685,3188.5,3188.4,0.15679]
[1765425669321,0.699,3187.3,3187.2,1.45958228]
[1765425669721,1.449,3187.3,3187.2,0.15962228]
[1765425670229,1.449,3187.3,3187.2,0.89092228]
[1765425670526,0.699,3187.3,3187.2,1.61642228]
[1765425670826,1.449,3187.3,3187.2,1.61642228]
[1765425671015,1.8847,3187.5,3187.4,0.87803]
[1765425671420,1.8847,3187.5,3187.4,0.15683]
[1765425672419,1.8847,3187.5,3187.4,0.87803]
[1765425672619,1.8847,3187.5,3187.4,0.15683]
[1765425672822,1.8847,3187.5,3187.4,1.57763]
[1765425673214,1.8847,3187.5,3187.4,0.87803]
[1765425673719,1.8847,3187.5,3187.4,1.57763]
[1765425673926,1.8847,3187.5,3187.2,0.00278228]
[1765425673927,1.8847,3188.0,3187.9,0.15681]
[1765425675227,1.88596685,3188.5,3188.4,0.15679]
[1765425675419,1.17706685,3188.5,3188.4,1.57759]
[1765425675619,1.88596685,3188.5,3188.4,0.87799]
[1765425675815,1.88596685,3188.5,3188.4,0.15679]
[1765425676828,1.88596685,3188.5,3188.4,0.87799]
[1765425677026,0.00276685,3188.5,3188.4,1.83038702]
[1765425677227,1.88116685,3188.5,3188.4,1.83038702]
[1765425677424,1.88116685,3188.5,3188.4,1.13078702]
[1765425677626,1.88116685,3188.5,3188.4,0.40958702]
[1765425678930,1.88116685,3188.5,3188.4,1.13078702]
[1765425679733,0.42736685,3188.5,3188.4,1.83038702]
[1765425680240,1.88116685,3188.5,3188.4,1.83038702]
[1765425680530,1.88116685,3188.5,3188.4,1.13078702]
[1765425680828,1.88116685,3188.5,3188.4,0.40958702]
[1765425681034,1.88116685,3188.5,3188.4,1.13078702]
[1765425681237,1.88116685,3188.5,3188.4,1.83038702]
[1765425681428,0.4246,3189.5,3188.4,1.83038702]
[1765425681429,1.8784,3189.5,3188.5,0.4273]
[1765425681637,1.8784,3189.5,3189.4,0.87794]
[1765425681935,1.1695,3189.5,3189.4,1.57754]
[1765425682535,0.00366392,3189.5,3189.4,1.57754]
[1765425683033,1.17316392,3189.5,3189.4,1.57754]
[1765425683423,0.42826392,3189.5,3189.4,1.57754]
[1765425683830,1.17316392,3189.5,3189.4,1.57754]
[1765425684030,1.88206392,3189.5,3189.4,0.15674]
[1765425684527,1.4538,3189.2,3189.1,0.00470182]
[1765425685535,1.4538,3189.2,3189.1,0.88265182]
[1765425685935,1.17316392,3189.5,3189.4,0.87794]
[1765425686135,1.17316392,3189.5,3189.4,1.57754]
[1765425686335,1.88206392,3189.5,3189.4,1.57754]
[1765425686735,1.88206392,3189.5,3189.4,0.87794]
[1765425687939,0.00366392,3189.5,3189.4,1.57754]
[1765425689340,0.74856392,3189.5,3189.4,1.57754]
[1765425689535,1.84806392,3189.5,3189.4,0.15674]
[1765425689737,1.84806392,3189.5,3189.4,4e-05]
[1765425689944,1.7927,3188.5,3187.6,11.285]
[1765425690147,1.7927,3188.5,3187.7,6.637]
[1765425691048,1.7927,3188.5,3187.8,12.43570182]
[1765425691448,1.7927,3188.5,3187.9,3.59876151]
[1765425691742,1.7927,3188.5,3188.4,0.15679]
[1765425691942,1.3787,3187.9,3187.8,0.41532852]
[1765425692344,1.3787,3187.9,3187.8,0.16151182]
[1765425693852,1.3787,3187.3,3186.6,4.512]
[1765425694149,1.3787,3187.3,3187.2,0.25270262]
[1765425694537,1.3787,3187.3,3187.2,0.15962228]
[1765425695746,1.7927,3187.0,3185.4,7.23941539]
[1765425695951,1.7927,3186.5,3186.4,0.15688]
[1765425696749,1.79561572,3186.5,3186.4,0.15959123]
[1765425698346,1.3787,3186.2,3186.1,0.00470182]
[1765425698744,1.3787,3186.2,3186.1,0.25019764]
[1765425698950,1.3787,3186.2,3186.1,0.00470182]
[1765425699252,1.3787,3186.2,3186.1,0.00774367]
[1765425699653,1.3787,3186.2,3186.1,0.16464367]
[1765425700353,1.7927,3185.5,3184.5,0.4149]
[1765425700753,1.3787,3185.8,3185.7,0.15692]
[1765425701252,1.3787,3185.8,3185.7,0.90432]
[1765425701448,1.3787,3185.8,3185.7,0.15941545]
[1765425701647,1.3787,3185.8,3185.7,0.90681545]
[1765425701849,1.3787,3185.8,3185.7,0.15941545]
[1765425702251,0.6932,3185.8,3185.7,1.60651545]
[1765425702450,1.7927,3186.0,3185.9,0.90431]
[1765425703051,1.7927,3186.0,3185.9,0.15691]
[1765425711359,1.7927,3186.0,3185.9,0.90431]
[1765425711559,1.7927,3186.0,3185.9,1.60401]
[1765425711765,1.79561572,3186.5,3186.4,0.15688]
[1765425712265,1.3787,3185.8,3185.7,0.00249545]
[1765425712662,1.3787,3185.8,3185.7,0.74989545]
[1765425712978,1.3787,3185.8,3185.7,1.44959545]
[1765425713662,0.6932,3185.8,3185.7,1.60651545]
[1765425715265,1.3787,3185.8,3185.7,1.60651545]
[1765425715968,1.7927,3186.0,3185.9,1.60401]
[1765425716161,1.3787,3186.0,3185.9,1.60401]
[1765425716463,1.79561572,3186.5,3186.4,0.90428]
[1765425716665,1.38161572,3186.5,3186.4,1.60398]
[1765425716967,1.79561572,3186.5,3186.4,0.15688]
[1765425717464,1.79561572,3186.5,3186.4,0.90428]
[1765425717767,0.00291572,3186.5,3186.4,1.60398]
[1765425718157,0.00470182,3186.8,3186.7,1.57187]
[1765425719165,0.414,3188.0,3187.4,0.15683]
[1765425719372,1.868,3187.5,3187.4,1.57183]
[1765425719569,1.868,3187.5,3187.4,0.85973]
[1765425719869,1.868,3187.5,3187.4,0.15683]
[1765425720266,1.87109869,3187.5,3187.4,0.15683]
[1765425720568,1.45709869,3187.5,3187.4,1.57183]
[1765425720763,1.86959869,3187.5,3187.4,0.15683]
[1765425721362,1.454,3187.2,3187.1,0.00470957]
[1765425721565,1.454,3187.2,3187.1,0.16155957]
[1765425723867,0.00309869,3187.5,3187.4,1.57183]
[1765425724074,1.86959869,3187.5,3187.4,0.15683]
[1765425724572,1.86959869,3187.5,3187.4,0.85973]
[1765425725074,1.86959869,3187.5,3187.4,0.15683]
[1765425725272,1.86959869,3187.5,3187.4,1.57183]
[1765425725468,1.86959869,3187.5,3187.4,0.85973]
[1765425725867,1.86959869,3187.5,3187.4,0.15683]
[1765425728370,1.86959869,3187.5,3186.5,0.3994]
[1765425728371,1.454,3187.2,3185.5,2.07895977]
[1765425728574,1.454,3187.2,3185.8,6.675]
[1765425728771,1.454,3186.9,3186.8,0.15686]
[1765425729472,1.454,3186.9,3186.8,0.85976]
[1765425729680,0.41559869,3187.5,3186.5,0.00315266]
[1765425729681,1.454,3187.4,3187.3,0.85974]
[1765425730066,0.00470957,3187.8,3187.4,1.415]
[1765425730276,1.454,3188.3,3188.2,0.15679]
[1765425731173,1.45801163,3188.3,3188.2,0.15923517]
[1765425735275,1.45801163,3188.3,3188.2,0.85873517]
[1765425735579,1.45801163,3188.3,3188.2,0.15923517]
[1765425736083,1.45801163,3188.3,3187.0,0.4387]
[1765425736281,1.4078,3187.9,3187.8,0.15681]
[1765425736582,1.4078,3186.6,3186.5,1.59283266]
[1765425736779,0.00470957,3186.9,3186.8,1.58966]
[1765425736973,0.68660957,3186.9,3186.8,1.58966]
[1765425737281,1.41250957,3186.9,3186.8,1.5924107]
[1765425737483,1.41250957,3186.9,3186.8,0.8591107]
[1765425738187,1.41250957,3186.9,3186.8,0.1596107]
[1765425741086,1.4078,3186.6,3186.5,0.00315266]
[1765425741983,1.4078,3186.6,3186.5,0.00586301]
[1765425742482,1.4078,3186.6,3186.5,0.16274301]
[1765425743681,1.4078,3186.2,3185.6,0.2562432]
[1765425743882,1.4078,3186.2,3185.5,0.4073]
[1765425744084,1.4078,3186.2,3186.1,1.4328]
[1765425744283,1.41250957,3186.9,3186.8,0.85636]
[1765425744791,0.68660957,3186.9,3186.8,1.59248548]
[1765425745393,1.8245,3188.0,3187.9,0.15681]
[1765425745688,1.4078,3188.0,3187.9,0.15681]
[1765425746686,1.8245,3188.0,3187.9,0.15681]
[1765425748393,1.8245,3188.0,3186.8,0.00282548]
[1765425748700,1.472,3187.4,3187.3,0.15684]
[1765425752114,1.472,3186.9,3186.8,0.00282548]
[1765425754210,1.472,3186.9,3186.8,2.548e-05]
[1765425754411,1.472,3186.9,3186.8,0.15688548]
[1765425754613,1.472,3186.6,3186.5,0.00470956]
[1765425755518,1.472,3186.6,3186.5,0.00719972]
[1765425756318,1.472,3186.6,3186.5,0.16407972]
[1765425757319,0.7334,3186.6,3186.5,2.03537972]
[1765425757820,1.472,3186.6,3186.5,0.59937972]
[1765425758422,1.472,3186.6,3186.5,0.16407972]
[1765425767022,0.2526,3186.5,3185.6,1.68735773]
[1765425767219,0.2526,3186.5,3185.6,1.436]
[1765425768023,1.7246,3186.5,3186.4,0.15688]
[1765425769122,1.472,3185.8,3185.7,0.00470957]
[1765425769425,1.47442597,3185.8,3185.7,0.00470957]
[1765425773519,1.47442597,3185.8,3183.8,1.90677065]
[1765425773520,0.7334,3184.6,3184.5,2.12437455]
[1765425773725,1.472,3185.1,3185.0,0.15695]
[1765425773920,0.00242597,3185.8,3185.3,0.15694]
[1765425774122,1.472,3185.4,3185.3,0.15694]
[1765425775925,1.472,3184.6,3183.0,0.4353]
[1765425776128,0.7334,3183.3,3183.2,0.89884]
[1765425776328,1.47557481,3183.3,3183.2,0.15704]
[1765425776632,0.00357481,3183.3,3183.2,1.59304]
[1765425777032,0.73697481,3183.3,3183.2,1.59304]
[1765425777230,1.47557481,3183.3,3183.2,0.15704]
[1765425777436,1.472,3182.6,3182.5,0.4353]
[1765425778628,1.472,3182.6,3182.5,0.59238]
[1765425778834,1.472,3182.6,3182.5,1.33418]
[1765425779234,0.7334,3182.6,3182.5,1.33418]
[1765425779733,0.7334,3182.6,3182.5,2.04238]
[1765425781239,1.4535,3182.6,3182.5,1.33418]
[1765425781438,1.4535,3182.6,3182.5,0.15708]
[1765425782438,1.4059,3182.1,3182.0,0.4353]
[1765425783035,1.4059,3181.8,3181.7,0.15712]
[1765425783734,1.4059,3181.0,3180.9,0.15715]
[1765425783938,1.40943733,3181.0,3180.9,0.15715]
[1765425784334,1.40943733,3181.0,3180.9,1.55045]
[1765425784335,0.00353733,3181.0,3180.9,1.55045]
[1765425785240,0.00353733,3181.0,3180.9,0.15715]
[1765425785241,1.40943733,3181.0,3180.9,0.15715]
[1765425786242,0.68933733,3181.0,3180.9,0.15715]
[1765425786537,7.33e-06,3181.0,3180.9,1.55045]
[1765425786735,0.68580733,3181.0,3180.9,0.84225]
[1765425786930,0.68580733,3181.0,3180.9,1.55045]
[1765425787138,7.33e-06,3181.0,3180.9,6.15715]
[1765425787334,7.33e-06,3181.0,3180.9,0.15715]
[1765425787646,2.27203747,3183.0,3182.2,0.15709]
[1765425787832,0.6858,3182.5,3182.4,0.84218]
[1765425788030,0.6858,3182.7,3182.6,0.84217]
[1765425788237,0.1958,3183.5,3182.5,0.4286]
[1765425788238,0.6858,3182.8,3182.7,0.6851]
[1765425788429,0.6858,3183.0,3182.9,0.15705]
[1765425788633,0.68862648,3183.0,3182.9,0.15705]
[1765425788833,0.00282648,3183.0,3182.9,1.55035]
[1765425789849,1.40872648,3183.0,3182.9,0.15705]
[1765425792646,0.68862648,3183.0,3182.9,0.15705]
[1765425792939,2.27486395,3183.0,3182.4,0.00470957]
[1765425793138,1.4059,3181.8,3181.7,0.15711]
[1765425793342,1.85496395,3183.0,3182.1,0.1571]
[1765425793534,1.4059,3182.2,3182.1,0.1571]
[1765425793738,0.6858,3181.4,3181.3,0.15713]
[1765425794043,1.4059,3181.4,3181.3,0.15713]
[1765425794443,1.85213747,3182.0,3181.3,0.84223]
[1765425795044,0.42272648,3183.0,3181.0,0.4286]
[1765425795045,1.85213747,3182.5,3181.0,0.4286]
[1765425795340,2.27486395,3183.0,3181.8,0.4286]
[1765425795645,0.99985457,3182.9,3181.8,0.4286]
[1765425796247,0.99985457,3182.8,3181.8,0.4286]
[1765425796437,1.85496395,3183.0,3181.8,0.4286]
[1765425796640,1.00056894,3182.9,3182.2,0.15709]
[1765425796936,1.00056894,3182.8,3182.3,0.15708]
[1765425797137,1.85496395,3183.0,3182.4,0.4286]
[1765425797339,0.6858,3182.5,3182.4,0.4286]
[1765425798049,1.4229,3182.5,3182.4,0.4286]
[1765425798950,1.4771,3182.4,3182.3,0.15708]
[1765425800144,2.48055855,3182.4,3182.3,0.15708]
[1765425801545,1.2742,3181.1,3181.0,0.58575]
[1765425801738,2.27978401,3181.1,3181.0,0.58575]
[1765425802558,2.27978401,3181.1,3181.0,0.15715]
[1765425803154,1.00558401,3181.1,3181.0,1.57575]
[1765425804850,0.6371,3181.1,3181.0,0.15715]
[1765425805049,1.2742,3180.7,3180.6,0.4286]
[1765425805253,0.6371,3180.4,3180.3,0.15718]
[1765425805453,1.64602939,3180.4,3180.3,0.15718]
[1765425805949,1.00892939,3180.4,3180.3,1.57578]
[1765425807053,1.00892939,3180.4,3180.3,0.84348]
[1765425807855,1.00892939,3180.4,3180.3,1.57578]
[1765425809059,1.00892939,3180.4,3180.3,7.57578]
[1765425809354,0.00470957,3181.4,3181.1,0.7453]
[1765425809653,0.7198,3181.2,3181.1,0.7453]
[1765425810344,0.72361875,3181.2,3181.1,0.74829563]
[1765425811053,0.00381875,3181.2,3181.1,1.64913563]
[1765425812151,7.28226658,3182.5,3181.1,1.64913563]
[1765425812152,1.412,3181.7,3181.6,0.15712]
[1765425813059,1.41495506,3181.7,3181.6,0.15712]
[1765425813360,0.72275506,3181.7,3181.6,0.15712]
[1765425813749,0.00295506,3181.7,3181.6,1.64612]
[1765425815656,2.55362537,3183.0,3181.5,0.4498]
[1765425815657,1.412,3182.7,3182.6,0.15707]
[1765425816555,1.41476424,3182.7,3182.6,0.15707]
[1765425817255,0.00276424,3182.7,3182.6,1.64607]
[1765425818059,0.72256424,3182.7,3182.6,0.90237]
[1765425818263,1.41476424,3182.7,3182.6,0.15707]
[1765425821164,2.42163915,3182.7,3182.6,0.15707]
[1765425821865,1.412,3181.9,3181.8,0.15711]
[1765425822059,2.41887491,3181.9,3181.8,0.15711]
[1765425822259,1.412,3181.9,3181.8,0.15711]
[1765425823065,1.412,3181.9,3181.3,0.00470957]
[1765425823066,1.412,3181.4,3181.3,0.00470957]
[1765425823261,0.4273,3182.0,3181.3,0.00470957]
[1765425823563,1.412,3181.4,3181.3,0.00470957]
[1765425824460,0.4273,3182.0,3181.3,0.75000957]
[1765425824660,1.412,3181.4,3181.3,0.00470957]
[1765425830059,1.412,3181.4,3181.1,0.00299563]
[1765425830265,3.08039282,3181.2,3181.1,0.00299563]
[1765425831870,1.7738,3181.0,3180.9,0.15715]
[1765425832768,0.7198,3181.0,3180.9,1.64996982]
[1765425833070,1.412,3181.0,3180.9,0.90626982]
[1765425833270,1.412,3181.0,3180.9,0.16096982]
[1765425833459,0.00470957,3181.3,3181.0,0.15715]
[1765425833657,1.412,3181.2,3181.1,0.15714]
[1765425834471,1.412,3181.2,3181.1,0.90244]
[1765425834662,0.00470957,3181.3,3181.2,1.64614]
[1765425835163,0.72450957,3181.3,3181.2,1.64614]
[1765425835774,1.41670957,3181.3,3181.2,0.90244]
[1765425836365,0.72450957,3181.3,3181.2,1.64614]
[1765425836874,1.41670957,3181.3,3181.2,0.15714]
[1765425837869,1.41670957,3181.3,3181.2,0.90244]
[1765425838472,0.00470957,3181.3,3181.2,1.64614]
[1765425839172,0.00470957,3181.3,3181.0,0.4498]
[1765425839173,1.4509,3182.0,3181.9,0.1571]
[1765425839467,3.853,3182.4,3182.0,0.4106]
[1765425839671,5.3039,3182.4,3182.3,0.6891]
[1765425840273,1.45837381,3182.7,3182.6,0.6891]
[1765425840671,1.4509,3182.5,3182.4,0.84618]
[1765425840869,1.4509,3182.5,3182.4,0.15708]
[1765425841973,0.7191,3182.5,3182.4,1.54048]
[1765425842174,0.72657381,3182.7,3182.6,0.6891]
[1765425842470,0.00747381,3182.7,3182.6,1.3834]
[1765425842871,0.72657381,3182.7,3182.6,1.3834]
[1765425843473,0.72657381,3182.7,3182.6,0.6891]
[1765425843474,1.45837381,3182.7,3182.6,0.6891]
[1765425843669,1.45837381,3182.7,3182.6,0.15707]
[1765425844374,0.00747381,3182.7,3182.6,1.54047]
[1765425844771,0.72657381,3182.7,3182.6,1.54047]
[1765425845067,1.45837381,3182.7,3182.6,0.15707]
[1765425845267,1.4509,3182.0,3181.9,0.84621]
[1765425846072,1.4509,3182.0,3181.0,0.4498]
[1765425846073,1.8666,3182.0,3181.1,0.15714]
[1765425846274,0.7191,3181.2,3181.1,0.84624]
[1765425846575,0.7191,3181.2,3181.1,1.54054]
[1765425847573,1.4509,3181.5,3181.4,0.15713]
[1765425849672,0.4157,3182.5,3181.5,0.4106]
[1765425849871,0.7191,3181.6,3181.5,1.794]
[1765425850975,0.7191,3181.6,3181.5,1.95113]
[1765425851473,0.7472,3181.8,3181.7,1.4309]
[1765425851673,1.4791,3181.8,3181.7,0.7147]
[1765425852379,1.4791,3181.6,3181.5,0.15713]
[1765425853580,0.7472,3181.8,3181.7,1.58802]
[1765425853878,1.4791,3182.0,3181.9,0.8718]
[1765425854380,3.853,3183.1,3182.6,0.15707]
[1765425854570,1.66839282,3183.6,3182.6,1.58797]
[1765425855081,0.75467381,3182.7,3182.6,1.58797]
[1765425855468,1.48657381,3182.7,3182.6,0.15707]
[1765425855880,0.75467381,3182.7,3182.6,1.58797]
[1765425856181,0.00747381,3182.7,3182.6,1.58797]
[1765425858169,0.75467381,3182.7,3182.6,1.58797]
[1765425858678,0.00747381,3182.7,3182.6,1.58797]
[1765425859074,0.75467381,3182.7,3182.6,1.58797]
[1765425859479,0.00747381,3182.7,3182.6,1.58797]
[1765425864399,5.3321,3183.5,3183.4,0.87173]
[1765425864579,4.6002,3183.5,3183.4,1.58793]
[1765425865382,4.60336572,3183.5,3183.4,1.59142738]
[1765425866083,5.33526572,3183.5,3183.4,1.59142738]
[1765425866788,0.00316572,3183.5,3183.4,1.59142738]
[1765425866987,0.75036572,3183.5,3183.4,1.59142738]
[1765425867290,3.138,3184.8,3183.4,1.59142738]
[1765425867291,1.4791,3184.4,3184.3,0.87168]
[1765425867482,0.7472,3183.6,3183.5,1.8723]
[1765425867789,0.7472,3183.7,3183.6,1.58792]
[1765425868182,0.75019524,3183.7,3183.6,1.58792]
[1765425868383,0.00299524,3183.7,3183.6,1.58792]
[1765425869490,1.40039524,3183.7,3183.6,0.87172]
[1765425869691,0.00299524,3183.7,3183.6,1.61192]
[1765425870087,0.00470957,3184.0,3183.9,1.59611]
[1765425871186,0.00730205,3184.0,3183.9,1.59611]
[1765425872089,0.678,3184.9,3184.8,1.4391]
[1765425872785,1.66839282,3185.7,3184.8,1.4391]
[1765425872989,0.678,3185.3,3185.2,1.59604]
[1765425873292,0.68270957,3185.6,3185.5,2.03803]
[1765425873491,0.00470957,3185.6,3185.5,2.03803]
[1765425873890,0.00398782,3185.7,3185.6,1.59602]
[1765425874590,0.678,3186.3,3186.2,0.85579]
[1765425874790,0.678,3186.3,3186.2,1.59599]
[1765425875586,0.00336866,3186.3,3186.2,1.59844347]
[1765425876390,0.00313975,3186.6,3186.5,2.03798]
[1765425876787,0.68113975,3186.6,3186.5,2.03798]
[1765425877289,0.00577651,3186.6,3186.5,2.03798]
[1765425877689,1.3974,3186.3,3186.2,0.00245347]
[1765425882288,0.678,3186.3,3186.2,1.59844347]
[1765425882894,1.3974,3186.4,3186.3,0.15689]
[1765425883090,1.3974,3186.3,3186.2,0.00245347]
[1765425883995,1.3974,3185.6,3185.5,0.59893]
[1765425884793,1.3974,3185.6,3185.5,0.15693]
[1765425885000,1.3974,3185.6,3185.5,0.16055248]
[1765425888208,1.3974,3185.6,3185.5,0.00362248]
[1765425888405,1.3974,3185.6,3184.9,0.00470957]
[1765425888406,1.3974,3185.0,3184.9,0.00470957]
[1765425889511,1.3974,3185.0,3184.9,0.00713181]
[1765425890918,0.678,3185.0,3184.9,1.60319181]
[1765425891810,1.3974,3185.1,3185.0,0.442]
[1765425892114,1.3974,3185.1,3185.0,0.59895]
[1765425892316,1.3974,3185.1,3185.0,1.29785]
[1765425893215,0.678,3185.1,3185.0,2.03805]
[1765425894714,0.678,3185.2,3185.1,1.59604]
[1765425895517,1.3974,3185.2,3185.1,0.15694]
[1765425896809,1.3974,3184.1,3183.5,0.442]
[1765425897215,0.678,3184.1,3184.0,1.861]
[1765425897413,0.4172,3185.0,3184.0,2.018]
[1765425897618,0.4172,3185.0,3184.1,0.157]
[1765425897812,0.00470957,3184.9,3184.4,0.15698]
[1765425898119,0.7292,3184.6,3184.5,1.8847]
[1765425898322,1.4808,3184.6,3184.5,1.8847]
[1765425898714,1.4808,3184.6,3184.5,1.1645]
[1765425899311,0.70250957,3184.9,3184.8,1.57016]
[1765425899619,0.00470957,3184.9,3184.8,1.57016]
[1765425901618,0.70250957,3184.9,3184.8,1.57016]
[1765425901819,1.39190957,3184.9,3184.8,1.57016]
[1765425902021,0.70250957,3184.9,3184.8,1.57016]
[1765425902217,0.00470957,3184.9,3184.8,1.57016]
[1765425903715,1.39190957,3184.9,3184.8,0.15696]
[1765425904021,1.39190957,3184.9,3184.8,1.57016]
[1765425904314,1.39190957,3184.9,3184.8,0.15696]
[1765425906218,1.3872,3184.3,3184.2,0.00470957]
[1765425906417,1.3872,3184.3,3184.2,0.71610957]
[1765425906720,1.3872,3184.3,3184.2,1.41790957]
[1765425907318,0.6978,3184.3,3184.2,1.57489957]
[1765425908520,0.6978,3184.8,3184.7,1.4132]
[1765425908717,0.00470957,3184.9,3184.8,1.57016]
[1765425908919,0.6978,3185.7,3185.6,1.4132]
[1765425909223,0.6978,3185.7,3185.5,0.4499]
[1765425909224,1.85251308,3186.9,3185.7,0.15691]
[1765425909416,0.6978,3186.1,3186.0,1.3182]
[1765425909617,1.85251308,3186.9,3186.0,2.02]
[1765425909824,0.00313975,3186.8,3186.1,0.00470957]
[1765425910026,0.00313975,3186.8,3186.5,0.4499]
[1765425910218,1.3872,3186.6,3186.5,1.16427012]
[1765425910526,1.3872,3186.6,3186.5,0.45287012]